[Event "*** Titled Tuesday 3|2 Blitz"]
[Site "Chess.com"]
[Date "2016.01.05"]
[Round "7"]
[White "zanbato17"]
[Black "Jahonas"]
[Result "1-0"]
[WhiteElo "2251"]
[BlackElo "2104"]
[TimeControl "180+2"]
[EndTime "18:31:09 PST"]
[Termination "zanbato17 won by checkmate"]

1. d4 {[%clk 0:03:01.9]} 1... c5 {[%clk 0:02:58.6]} 2. d5 {[%clk 0:03:02.9]}
2... Nf6 {[%clk 0:02:58.7]} 3. c4 {[%clk 0:03:04.2]} 3... d6 {[%clk 0:02:59.7]}
4. Nc3 {[%clk 0:03:05.4]} 4... e6 {[%clk 0:03:00.2]} 5. e4 {[%clk 0:03:05.4]}
5... exd5 {[%clk 0:03:01.1]} 6. cxd5 {[%clk 0:03:07.3]} 6... a6 {[%clk
0:03:01.5]} 7. a4 {[%clk 0:03:08.2]} 7... Nbd7 {[%clk 0:03:00.8]} 8. Bd3 {[%clk
0:03:09.3]} 8... Ne5 {[%clk 0:03:01.2]} 9. Nf3 {[%clk 0:03:09]} 9... Nxd3+
{[%clk 0:03:01.3]} 10. Qxd3 {[%clk 0:03:09.8]} 10... Be7 {[%clk 0:03:01.6]} 11.
O-O {[%clk 0:03:10.7]} 11... O-O {[%clk 0:03:02.4]} 12. Bf4 {[%clk 0:03:11.3]}
12... Bg4 {[%clk 0:03:00.5]} 13. Nd2 {[%clk 0:03:12.2]} 13... Nd7 {[%clk
0:02:59.1]} 14. f3 {[%clk 0:03:09.4]} 14... Bh5 {[%clk 0:02:57]} 15. Nc4 {[%clk
0:03:10]} 15... Nb6 {[%clk 0:02:53.9]} 16. a5 {[%clk 0:03:04.6]} 16... Nxc4
{[%clk 0:02:54.8]} 17. Qxc4 {[%clk 0:03:06.5]} 17... Bg5 {[%clk 0:02:52.7]} 18.
Bxg5 {[%clk 0:03:02.4]} 18... Qxg5 {[%clk 0:02:53]} 19. Qe2 {[%clk 0:03:03.2]}
19... f5 {[%clk 0:02:51.5]} 20. exf5 {[%clk 0:02:57.7]} 20... Rxf5 {[%clk
0:02:38.3]} 21. Rae1 {[%clk 0:02:51.9]} 21... Re5 {[%clk 0:02:35.9]} 22. Qf2
{[%clk 0:02:46.8]} 22... Rxe1 {[%clk 0:02:20.8]} 23. Rxe1 {[%clk 0:02:48.7]}
23... Re8 {[%clk 0:02:20.4]} 24. Rxe8+ {[%clk 0:02:46.4]} 24... Bxe8 {[%clk
0:02:21]} 25. h3 {[%clk 0:02:47.6]} 25... Qe5 {[%clk 0:02:18]} 26. Qe2 {[%clk
0:02:46.7]} 26... Qd4+ {[%clk 0:02:15.5]} 27. Kh2 {[%clk 0:02:43.2]} 27... Bf7
{[%clk 0:02:15.6]} 28. Qe4 {[%clk 0:02:35.1]} 28... h6 {[%clk 0:02:06.4]} 29.
Kg3 {[%clk 0:02:28.1]} 29... Qd2 {[%clk 0:02:01.6]} 30. Qe7 {[%clk 0:02:11.5]}
30... Qxb2 {[%clk 0:01:44.7]} 31. Ne4 {[%clk 0:01:53.3]} 31... Bxd5 {[%clk
0:01:30.7]} 32. Nxd6 {[%clk 0:01:45.8]} 32... c4 {[%clk 0:01:00.5]} 33. Qe8+
{[%clk 0:01:18.9]} 33... Kh7 {[%clk 0:00:57.7]} 34. Qh5 {[%clk 0:01:20.2]} 34...
Qd2 {[%clk 0:00:45.8]} 35. Qf5+ {[%clk 0:01:15.9]} 35... Kg8 {[%clk 0:00:39.8]}
36. Qc8+ {[%clk 0:01:16.2]} 36... Kh7 {[%clk 0:00:40.6]} 37. Qf5+ {[%clk
0:01:16.6]} 37... Kh8 {[%clk 0:00:37.8]} 38. Qf8+ {[%clk 0:00:56.8]} 38... Bg8
{[%clk 0:00:34.1]} 39. Ne4 {[%clk 0:00:53.5]} 39... Qd5 {[%clk 0:00:28.4]} 40.
Qc8 {[%clk 0:00:48.6]} 40... Qe5+ {[%clk 0:00:27]} 41. Kf2 {[%clk 0:00:47.8]}
41... Qd4+ {[%clk 0:00:27.5]} 42. Kg3 {[%clk 0:00:49]} 42... Qd5 {[%clk
0:00:27.9]} 43. Qc7 {[%clk 0:00:46.6]} 43... Qc6 {[%clk 0:00:25.6]} 44. Qxc6
{[%clk 0:00:45.4]} 44... bxc6 {[%clk 0:00:26]} 45. Kf4 {[%clk 0:00:46.9]} 45...
Bd5 {[%clk 0:00:26.3]} 46. Nc5 {[%clk 0:00:42.6]} 46... c3 {[%clk 0:00:25.9]}
47. Ke3 {[%clk 0:00:43.4]} 47... Bc4 {[%clk 0:00:25.2]} 48. Na4 {[%clk
0:00:42.4]} 48... c2 {[%clk 0:00:23.9]} 49. Kd2 {[%clk 0:00:43.3]} 49... Bf1
{[%clk 0:00:23]} 50. Nc5 {[%clk 0:00:34.5]} 50... Bxg2 {[%clk 0:00:21.2]} 51.
Nxa6 {[%clk 0:00:35.4]} 51... Bxf3 {[%clk 0:00:22.3]} 52. Nc5 {[%clk 0:00:34.8]}
52... Be2 {[%clk 0:00:11.3]} 53. Kxc2 {[%clk 0:00:35.1]} 53... Bf1 {[%clk
0:00:10]} 54. Kd2 {[%clk 0:00:34.2]} 54... Kh7 {[%clk 0:00:11.1]} 55. Ke1 {[%clk
0:00:35.2]} 55... Bb5 {[%clk 0:00:11.8]} 56. Kf2 {[%clk 0:00:31.4]} 56... g5
{[%clk 0:00:12.7]} 57. Ke3 {[%clk 0:00:32.2]} 57... Kg6 {[%clk 0:00:13.8]} 58.
Ke4 {[%clk 0:00:33.5]} 58... h5 {[%clk 0:00:14.4]} 59. a6 {[%clk 0:00:26.3]}
59... Bxa6 {[%clk 0:00:14.1]} 60. Nxa6 {[%clk 0:00:28.2]} 60... Kf6 {[%clk
0:00:12.4]} 61. Nc5 {[%clk 0:00:28.5]} 61... Ke7 {[%clk 0:00:12.4]} 62. Nd3
{[%clk 0:00:23.8]} 62... g4 {[%clk 0:00:11.4]} 63. h4 {[%clk 0:00:24]} 63... Kd6
{[%clk 0:00:12.1]} 64. Nf4 {[%clk 0:00:25.1]} 64... g3 {[%clk 0:00:13.2]} 65.
Kf3 {[%clk 0:00:25.6]} 65... c5 {[%clk 0:00:13.6]} 66. Nxh5 {[%clk 0:00:26.6]}
66... c4 {[%clk 0:00:11.9]} 67. Nxg3 {[%clk 0:00:27.6]} 67... Ke5 {[%clk
0:00:12.1]} 68. Ne4 {[%clk 0:00:28]} 68... Kf5 {[%clk 0:00:11.5]} 69. Nc3 {[%clk
0:00:29.1]} 69... Kg6 {[%clk 0:00:12.2]} 70. Kg4 {[%clk 0:00:30.2]} 70... Kh6
{[%clk 0:00:13.6]} 71. h5 {[%clk 0:00:30.8]} 71... Kh7 {[%clk 0:00:14.8]} 72.
Kg5 {[%clk 0:00:31.1]} 72... Kg7 {[%clk 0:00:16]} 73. Ne4 {[%clk 0:00:32.2]}
73... Kh8 {[%clk 0:00:15.4]} 74. Kg6 {[%clk 0:00:32.1]} 74... Kg8 {[%clk
0:00:16.3]} 75. h6 {[%clk 0:00:31.2]} 75... Kh8 {[%clk 0:00:17.5]} 76. h7 {[%clk
0:00:32.4]} 76... c3 {[%clk 0:00:18.5]} 77. Nd6 {[%clk 0:00:34.3]} 77... c2
{[%clk 0:00:19.4]} 78. Nf7# {[%clk 0:00:36.2]} 1-0

[Event "*** Titled Tuesday 3|2 Blitz"]
[Site "Chess.com"]
[Date "2016.01.05"]
[Round "7"]
[White "GrigorGrigorov"]
[Black "Malev212"]
[Result "1-0"]
[WhiteElo "2516"]
[BlackElo "2303"]
[TimeControl "180+2"]
[EndTime "18:31:44 PST"]
[Termination "GrigorGrigorov won by resignation"]

1. d4 {[%clk 0:03:01.9]} 1... Nf6 {[%clk 0:02:46.3]} 2. c4 {[%clk 0:03:00.3]}
2... b6 {[%clk 0:02:46.4]} 3. Nf3 {[%clk 0:03:00.1]} 3... Bb7 {[%clk 0:02:44.7]}
4. e3 {[%clk 0:03:00.5]} 4... e6 {[%clk 0:02:44.5]} 5. Nc3 {[%clk 0:02:59.6]}
5... d5 {[%clk 0:02:44.3]} 6. Bd3 {[%clk 0:02:55.1]} 6... Bd6 {[%clk 0:02:44]}
7. O-O {[%clk 0:02:54.7]} 7... O-O {[%clk 0:02:44.5]} 8. cxd5 {[%clk 0:02:55.6]}
8... exd5 {[%clk 0:02:44.3]} 9. b3 {[%clk 0:02:56.9]} 9... a6 {[%clk 0:02:42.8]}
10. Bb2 {[%clk 0:02:57.3]} 10... Nbd7 {[%clk 0:02:44.3]} 11. Rc1 {[%clk
0:02:47.6]} 11... Qe7 {[%clk 0:02:43.5]} 12. Ne2 {[%clk 0:02:46.9]} 12... g6
{[%clk 0:02:36.4]} 13. Qc2 {[%clk 0:02:43.4]} 13... Rac8 {[%clk 0:02:35]} 14.
Ng3 {[%clk 0:02:42.7]} 14... Ne4 {[%clk 0:02:25.3]} 15. Qe2 {[%clk 0:02:40.6]}
15... Ra8 {[%clk 0:02:19.7]} 16. Rc2 {[%clk 0:02:40.9]} 16... f5 {[%clk
0:02:19.5]} 17. Rfc1 {[%clk 0:02:33.2]} 17... c6 {[%clk 0:02:19.7]} 18. Re1
{[%clk 0:02:30.8]} 18... a5 {[%clk 0:02:17.7]} 19. Nd2 {[%clk 0:02:27.6]} 19...
Rae8 {[%clk 0:02:17.7]} 20. Ndf1 {[%clk 0:02:20.8]} 20... Qh4 {[%clk 0:02:07.5]}
21. a3 {[%clk 0:01:35.4]} 21... Ndf6 {[%clk 0:02:02.1]} 22. Qd1 {[%clk
0:01:29.5]} 22... Ng4 {[%clk 0:01:47.3]} 23. Bxe4 {[%clk 0:00:59.8]} 23... fxe4
{[%clk 0:01:30.7]} 24. Ree2 {[%clk 0:01:00.6]} 24... Rf6 {[%clk 0:01:17]} 25. h3
{[%clk 0:00:55.5]} 25... Nh6 {[%clk 0:01:09.8]} 26. Re1 {[%clk 0:00:47.9]} 26...
Ref8 {[%clk 0:01:09]} 27. Qc1 {[%clk 0:00:38.2]} 27... Bb8 {[%clk 0:01:05.7]}
28. Qd1 {[%clk 0:00:37.5]} 28... Ba6 {[%clk 0:01:03.1]} 29. Rd2 {[%clk
0:00:26.9]} 29... Bc8 {[%clk 0:01:02.5]} 30. b4 {[%clk 0:00:22.8]} 30... axb4
{[%clk 0:01:00.7]} 31. axb4 {[%clk 0:00:23.3]} 31... Bxh3 {[%clk 0:00:50]} 32.
gxh3 {[%clk 0:00:24]} 32... Qxh3 {[%clk 0:00:50.9]} 33. f4 {[%clk 0:00:25.5]}
33... Ng4 {[%clk 0:00:47.5]} 34. Rg2 {[%clk 0:00:23]} 34... h5 {[%clk
0:00:44.5]} 35. Qe2 {[%clk 0:00:21.8]} 35... b5 {[%clk 0:00:42.5]} 36. Nh1
{[%clk 0:00:21.1]} 36... g5 {[%clk 0:00:35.6]} 37. Nf2 {[%clk 0:00:19.6]} 37...
Nxf2 {[%clk 0:00:24.6]} 38. Rxg5+ {[%clk 0:00:20.5]} 38... Kh7 {[%clk
0:00:25.6]} 39. Rxh5+ {[%clk 0:00:20.7]} 39... Kg6 {[%clk 0:00:24.3]} 40. Rxh3
{[%clk 0:00:20.5]} 40... Nxh3+ {[%clk 0:00:24.6]} 41. Kg2 {[%clk 0:00:22.1]}
41... Rxf4 {[%clk 0:00:23.5]} 42. Kxh3 {[%clk 0:00:20.1]} 42... Rh8+ {[%clk
0:00:19]} 43. Kg2 {[%clk 0:00:20.5]} 43... Rf5 {[%clk 0:00:20.4]} 44. Qg4+
{[%clk 0:00:17.5]} 44... Rg5 {[%clk 0:00:21.2]} 45. Qxg5+ {[%clk 0:00:18.7]}
45... Kxg5 {[%clk 0:00:22.1]} 46. Rc1 {[%clk 0:00:20.2]} 46... Rh6 {[%clk
0:00:21.2]} 47. Bc3 {[%clk 0:00:21.1]} 47... Bd6 {[%clk 0:00:19.6]} 48. Be1
{[%clk 0:00:21.9]} 48... Be7 {[%clk 0:00:18.8]} 49. Ng3 {[%clk 0:00:21.9]} 49...
Kg4 {[%clk 0:00:19.3]} 50. Ne2 {[%clk 0:00:21]} 50... Bg5 {[%clk 0:00:19.8]} 51.
Bf2 {[%clk 0:00:21.1]} 51... Rf6 {[%clk 0:00:19.3]} 52. Ra1 {[%clk 0:00:20.3]}
52... Rf3 {[%clk 0:00:17.9]} 53. Ng1 {[%clk 0:00:21.1]} 53... Rf6 {[%clk
0:00:16.5]} 54. Ra8 {[%clk 0:00:21.1]} 54... Rg6 {[%clk 0:00:16.6]} 55. Rf8
{[%clk 0:00:20.2]} 55... Be7 {[%clk 0:00:16.7]} 56. Rf4+ {[%clk 0:00:20.3]}
56... Kh5+ {[%clk 0:00:17.4]} 57. Bg3 {[%clk 0:00:18]} 57... Bxb4 {[%clk
0:00:18.1]} 58. Nh3 {[%clk 0:00:19.3]} 58... Kh6 {[%clk 0:00:17.6]} 59. Rf7
{[%clk 0:00:17.7]} 59... Bd6 {[%clk 0:00:17]} 60. Nf4 {[%clk 0:00:19.1]} 60...
Bxf4 {[%clk 0:00:15.5]} 61. Rxf4 {[%clk 0:00:19.3]} 61... Kg7 {[%clk 0:00:14.7]}
62. Rf2 {[%clk 0:00:18.7]} 62... Kg8 {[%clk 0:00:14]} 63. Kh3 {[%clk 0:00:19.4]}
63... Rg7 {[%clk 0:00:12.7]} 64. Rf6 {[%clk 0:00:18.4]} 64... Rb7 {[%clk
0:00:11]} 65. Rxc6 {[%clk 0:00:19]} 65... b4 {[%clk 0:00:12.6]} 66. Rc2 {[%clk
0:00:18.7]} 66... b3 {[%clk 0:00:13.4]} 67. Rb2 {[%clk 0:00:20.3]} 67... Kf7
{[%clk 0:00:14.2]} 68. Kg4 {[%clk 0:00:21.6]} 68... Ke6 {[%clk 0:00:14.8]} 69.
Be5 {[%clk 0:00:18.1]} 69... Kd7 {[%clk 0:00:15.1]} 70. Kf5 {[%clk 0:00:18.6]}
70... Kc6 {[%clk 0:00:13.4]} 71. Ke6 {[%clk 0:00:19.5]} 71... Rb4 {[%clk
0:00:13.8]} 72. Bd6 {[%clk 0:00:19.2]} 72... Rb6 {[%clk 0:00:13.8]} 73. Bc5
{[%clk 0:00:19.2]} 73... Rb8 {[%clk 0:00:14.3]} 74. Ba3 {[%clk 0:00:18.8]} 74...
Re8+ {[%clk 0:00:14.2]} 75. Kf7 {[%clk 0:00:18.7]} 75... Rb8 {[%clk 0:00:14.6]}
76. Ke7 {[%clk 0:00:18.6]} 76... Rb7+ {[%clk 0:00:12.5]} 77. Ke6 {[%clk
0:00:19.5]} 77... Rb8 {[%clk 0:00:13.6]} 78. Rg2 {[%clk 0:00:19.7]} 78... Re8+
{[%clk 0:00:14.2]} 79. Kf7 {[%clk 0:00:20.7]} 79... Ra8 {[%clk 0:00:14]} 80. Bb2
{[%clk 0:00:19.9]} 80... Kb5 {[%clk 0:00:14.5]} 81. Ke6 {[%clk 0:00:15.5]} 81...
Kc4 {[%clk 0:00:15.1]} 82. Rg7 {[%clk 0:00:15.9]} 82... Ra2 {[%clk 0:00:12.3]}
83. Rc7+ {[%clk 0:00:16.8]} 83... Kd3 {[%clk 0:00:12.8]} 84. Rc3+ {[%clk
0:00:17]} 84... Kd2 {[%clk 0:00:11.6]} 85. Rxb3 {[%clk 0:00:17.9]} 85... Kc2
{[%clk 0:00:12.3]} 86. Rb5 {[%clk 0:00:18.9]} 1-0

[Event "*** Titled Tuesday 3|2 Blitz"]
[Site "Chess.com"]
[Date "2016.01.05"]
[Round "8"]
[White "pedromartinez91"]
[Black "oskariot"]
[Result "1-0"]
[WhiteElo "2103"]
[BlackElo "2309"]
[TimeControl "180+2"]
[EndTime "18:35:16 PST"]
[Termination "pedromartinez91 won by resignation"]

1. e4 {[%clk 0:03:01.9]} 1... c5 {[%clk 0:03:00.8]} 2. Nf3 {[%clk 0:03:01.7]}
2... d6 {[%clk 0:03:01.1]} 3. Bb5+ {[%clk 0:02:59.7]} 3... Nc6 {[%clk
0:03:00.4]} 4. O-O {[%clk 0:02:55]} 4... Bd7 {[%clk 0:03:00.9]} 5. Re1 {[%clk
0:02:53.7]} 5... Nf6 {[%clk 0:03:00.7]} 6. c3 {[%clk 0:02:53.3]} 6... a6 {[%clk
0:03:01.6]} 7. Bf1 {[%clk 0:02:53.9]} 7... Bg4 {[%clk 0:03:03]} 8. d4 {[%clk
0:02:54.5]} 8... cxd4 {[%clk 0:02:43.1]} 9. cxd4 {[%clk 0:02:55.2]} 9... Bxf3
{[%clk 0:02:44]} 10. gxf3 {[%clk 0:02:55.6]} 10... e5 {[%clk 0:02:45.2]} 11. d5
{[%clk 0:02:56.2]} 11... Ne7 {[%clk 0:02:45.4]} 12. Qb3 {[%clk 0:02:41.3]} 12...
Qd7 {[%clk 0:02:28.3]} 13. Nc3 {[%clk 0:02:31.6]} 13... Ng6 {[%clk 0:02:21.1]}
14. Na4 {[%clk 0:02:31.8]} 14... Rb8 {[%clk 0:02:06.1]} 15. Nb6 {[%clk
0:02:32.5]} 15... Qd8 {[%clk 0:02:07.3]} 16. Qa4+ {[%clk 0:02:29.1]} 16... Nd7
{[%clk 0:01:57]} 17. Bh3 {[%clk 0:02:26.2]} 1-0

[Event "*** Titled Tuesday 3|2 Blitz"]
[Site "Chess.com"]
[Date "2016.01.05"]
[Round "8"]
[White "Assasin14"]
[Black "DanielNaroditsky"]
[Result "0-1"]
[WhiteElo "1999"]
[BlackElo "2549"]
[TimeControl "180+2"]
[EndTime "18:35:41 PST"]
[Termination "DanielNaroditsky won by checkmate"]

1. e4 {[%clk 0:03:01.9]} 1... e6 {[%clk 0:02:59.6]} 2. d4 {[%clk 0:03:02.5]}
2... d5 {[%clk 0:03:01.3]} 3. Nc3 {[%clk 0:03:03.4]} 3... Nf6 {[%clk 0:03:02.8]}
4. e5 {[%clk 0:03:04.4]} 4... Nfd7 {[%clk 0:03:04]} 5. f4 {[%clk 0:03:02.4]}
5... c5 {[%clk 0:03:05.1]} 6. Nf3 {[%clk 0:03:03]} 6... Nc6 {[%clk 0:03:06.9]}
7. Be3 {[%clk 0:03:03.6]} 7... Be7 {[%clk 0:03:08.4]} 8. Qd2 {[%clk 0:03:04.5]}
8... O-O {[%clk 0:03:07.1]} 9. O-O-O {[%clk 0:03:05.1]} 9... c4 {[%clk
0:03:06.7]} 10. g4 {[%clk 0:03:04.7]} 10... b5 {[%clk 0:03:06.6]} 11. Nxb5
{[%clk 0:02:59.7]} 11... Rb8 {[%clk 0:03:06.4]} 12. Nd6 {[%clk 0:02:57.3]} 12...
Bxd6 {[%clk 0:02:51.1]} 13. exd6 {[%clk 0:02:58.4]} 13... Nf6 {[%clk 0:02:50.5]}
14. Rg1 {[%clk 0:02:37.4]} 14... Ne4 {[%clk 0:02:49.1]} 15. Qg2 {[%clk
0:02:33.5]} 15... c3 {[%clk 0:02:46.4]} 16. b3 {[%clk 0:02:30.9]} 16... Qa5
{[%clk 0:02:25.6]} 17. a4 {[%clk 0:02:23.6]} 17... Qb4 {[%clk 0:02:22.7]} 18.
Re1 {[%clk 0:02:10.8]} 18... Qa3+ {[%clk 0:02:06.5]} 19. Kd1 {[%clk 0:02:10.4]}
19... Qa1+ {[%clk 0:02:04.5]} 20. Ke2 {[%clk 0:01:49.4]} 20... Ba6# {[%clk
0:02:02.2]} 0-1

[Event "*** Titled Tuesday 3|2 Blitz"]
[Site "Chess.com"]
[Date "2016.01.05"]
[Round "8"]
[White "tigra"]
[Black "Silent_Terror"]
[Result "1-0"]
[WhiteElo "2330"]
[BlackElo "2482"]
[TimeControl "180+2"]
[EndTime "18:36:46 PST"]
[Termination "tigra won by resignation"]

1. e4 {[%clk 0:03:01.9]} 1... e6 {[%clk 0:03:01.9]} 2. d4 {[%clk 0:03:02.8]}
2... d5 {[%clk 0:03:03.4]} 3. Nc3 {[%clk 0:03:04.5]} 3... Bb4 {[%clk 0:03:04.3]}
4. e5 {[%clk 0:03:05.4]} 4... c5 {[%clk 0:03:05.4]} 5. a3 {[%clk 0:03:05.7]}
5... Bxc3+ {[%clk 0:03:06.7]} 6. bxc3 {[%clk 0:03:07.4]} 6... Qc7 {[%clk
0:03:08.2]} 7. Qg4 {[%clk 0:03:02.8]} 7... f5 {[%clk 0:03:09.3]} 8. Qg3 {[%clk
0:03:03.4]} 8... Nc6 {[%clk 0:03:10.5]} 9. Ne2 {[%clk 0:03:03.3]} 9... Kf7
{[%clk 0:03:08.8]} 10. h4 {[%clk 0:03:03.9]} 10... Nge7 {[%clk 0:03:02.7]} 11.
h5 {[%clk 0:03:04.8]} 11... Bd7 {[%clk 0:02:54.3]} 12. h6 {[%clk 0:02:59]} 12...
g6 {[%clk 0:02:54.7]} 13. Qh4 {[%clk 0:02:57.6]} 13... Raf8 {[%clk 0:02:34.7]}
14. Rh3 {[%clk 0:02:51.3]} 14... Ke8 {[%clk 0:02:31.5]} 15. a4 {[%clk
0:02:45.8]} 15... cxd4 {[%clk 0:02:16.2]} 16. cxd4 {[%clk 0:02:44.6]} 16... Nb4
{[%clk 0:02:17]} 17. Rc3 {[%clk 0:02:43.4]} 17... Qa5 {[%clk 0:02:03.8]} 18. Bd2
{[%clk 0:02:35.2]} 18... Bxa4 {[%clk 0:01:44.3]} 19. Rc5 {[%clk 0:02:11.7]}
19... b5 {[%clk 0:01:35]} 20. Rb1 {[%clk 0:01:58.8]} 20... Bxc2 {[%clk
0:01:26.4]} 21. Bxb4 {[%clk 0:01:58.8]} 21... Qa2 {[%clk 0:01:06.4]} 22. Qxe7+
{[%clk 0:01:55.6]} 22... Kxe7 {[%clk 0:01:07.3]} 23. Rxc2+ {[%clk 0:01:56.4]}
23... Kd7 {[%clk 0:01:09.2]} 24. Rxa2 {[%clk 0:01:57.2]} 1-0

[Event "*** Titled Tuesday 3|2 Blitz"]
[Site "Chess.com"]
[Date "2016.01.05"]
[Round "8"]
[White "RitchieBlackmore"]
[Black "alex_zapata"]
[Result "1-0"]
[WhiteElo "2475"]
[BlackElo "2203"]
[TimeControl "180+2"]
[EndTime "18:37:23 PST"]
[Termination "RitchieBlackmore won by resignation"]

1. d4 {[%clk 0:02:57.9]} 1... d5 {[%clk 0:02:54.4]} 2. Nf3 {[%clk 0:02:57.1]}
2... Nf6 {[%clk 0:02:56.3]} 3. Bg5 {[%clk 0:02:55.4]} 3... Ne4 {[%clk
0:02:56.5]} 4. Bf4 {[%clk 0:02:56.4]} 4... c5 {[%clk 0:02:57.4]} 5. e3 {[%clk
0:02:54.9]} 5... Nc6 {[%clk 0:02:58.8]} 6. c3 {[%clk 0:02:55.4]} 6... Bg4 {[%clk
0:02:59.4]} 7. h3 {[%clk 0:02:53.8]} 7... Bxf3 {[%clk 0:02:56.2]} 8. gxf3 {[%clk
0:02:52.6]} 8... Nf6 {[%clk 0:02:56.2]} 9. Nd2 {[%clk 0:02:54]} 9... e6 {[%clk
0:02:56.2]} 10. Rg1 {[%clk 0:02:53]} 10... Nh5 {[%clk 0:02:47]} 11. Bg5 {[%clk
0:02:51.4]} 11... Qb6 {[%clk 0:02:43.3]} 12. f4 {[%clk 0:02:49.5]} 12... g6
{[%clk 0:01:53.3]} 13. Be2 {[%clk 0:02:47.9]} 13... Qxb2 {[%clk 0:01:49.3]} 14.
Bxh5 {[%clk 0:02:46.2]} 14... gxh5 {[%clk 0:01:50.8]} 15. Bf6 {[%clk 0:02:44.4]}
15... Qxc3 {[%clk 0:01:46.2]} 16. Bxh8 {[%clk 0:02:43.6]} 16... cxd4 {[%clk
0:01:44.1]} 17. exd4 {[%clk 0:02:33]} 17... Bb4 {[%clk 0:01:36.4]} 18. Rg8+
{[%clk 0:02:30.7]} 18... Bf8 {[%clk 0:01:28.2]} 19. Bg7 {[%clk 0:02:31.4]} 19...
O-O-O {[%clk 0:01:28.7]} 20. Rxf8 {[%clk 0:02:30.5]} 20... Rxf8 {[%clk
0:01:29.5]} 21. Bxf8 {[%clk 0:02:31.2]} 21... Kd7 {[%clk 0:01:29.8]} 22. Rb1
{[%clk 0:02:29.3]} 22... b6 {[%clk 0:01:28]} 23. Qxh5 {[%clk 0:02:27.2]} 23...
Nxd4 {[%clk 0:01:22.4]} 24. Qxf7+ {[%clk 0:02:27.7]} 24... Kc6 {[%clk
0:01:21.8]} 25. Bb4 {[%clk 0:02:22]} 25... Qd3 {[%clk 0:01:00.6]} 26. Qe8+
{[%clk 0:02:20.8]} 26... Kb7 {[%clk 0:00:57.8]} 27. Qd7+ {[%clk 0:02:19.7]}
27... Ka6 {[%clk 0:00:52.7]} 28. Qc8+ {[%clk 0:02:19.1]} 28... Kb5 {[%clk
0:00:48.5]} 29. Bc3+ {[%clk 0:02:20.7]} 1-0

[Event "*** Titled Tuesday 3|2 Blitz"]
[Site "Chess.com"]
[Date "2016.01.05"]
[Round "8"]
[White "jlandaw"]
[Black "zanbato17"]
[Result "1-0"]
[WhiteElo "2351"]
[BlackElo "2245"]
[TimeControl "180+2"]
[EndTime "18:37:47 PST"]
[Termination "jlandaw won by resignation"]

1. e4 {[%clk 0:03:01.9]} 1... d5 {[%clk 0:03:00.8]} 2. exd5 {[%clk 0:03:02.8]}
2... Qxd5 {[%clk 0:03:02.7]} 3. Nc3 {[%clk 0:03:04.1]} 3... Qa5 {[%clk
0:03:01.7]} 4. Bc4 {[%clk 0:02:59.5]} 4... c6 {[%clk 0:03:01.2]} 5. Nf3 {[%clk
0:02:57.7]} 5... Bf5 {[%clk 0:03:01.8]} 6. O-O {[%clk 0:02:57.6]} 6... e6 {[%clk
0:03:02.8]} 7. d4 {[%clk 0:02:51.2]} 7... Nf6 {[%clk 0:03:03.1]} 8. Bf4 {[%clk
0:02:42.7]} 8... Bb4 {[%clk 0:03:02.5]} 9. Ne2 {[%clk 0:02:33.9]} 9... O-O
{[%clk 0:03:02.2]} 10. c3 {[%clk 0:02:33.8]} 10... Be7 {[%clk 0:02:55.8]} 11.
Ng3 {[%clk 0:02:34.8]} 11... Bg6 {[%clk 0:02:56.3]} 12. Ne5 {[%clk 0:02:35.9]}
12... Nbd7 {[%clk 0:02:55.1]} 13. Nxg6 {[%clk 0:02:26.1]} 13... hxg6 {[%clk
0:02:55.3]} 14. Qe2 {[%clk 0:02:27.3]} 14... Nd5 {[%clk 0:02:47.7]} 15. Bd2
{[%clk 0:02:28.3]} 15... Qc7 {[%clk 0:02:47.7]} 16. Ne4 {[%clk 0:02:26.7]} 16...
N7f6 {[%clk 0:02:47.8]} 17. Ng5 {[%clk 0:02:25.1]} 17... Qd6 {[%clk 0:02:42.2]}
18. Bb3 {[%clk 0:02:15.6]} 18... Nh5 {[%clk 0:02:42.8]} 19. g3 {[%clk
0:02:10.9]} 19... a5 {[%clk 0:02:24.4]} 20. Rae1 {[%clk 0:02:10.4]} 20... a4
{[%clk 0:02:25.1]} 21. Bc2 {[%clk 0:02:11.8]} 21... b5 {[%clk 0:02:26]} 22. Nxf7
{[%clk 0:01:13.3]} 22... Kxf7 {[%clk 0:02:21.6]} 23. Qg4 {[%clk 0:01:13.9]}
23... Ndf6 {[%clk 0:02:07.8]} 24. Bxg6+ {[%clk 0:01:14.3]} 24... Kg8 {[%clk
0:02:05.9]} 25. Qh3 {[%clk 0:01:15.4]} 25... Rae8 {[%clk 0:01:54.5]} 26. Re5
{[%clk 0:00:58.1]} 26... Rd8 {[%clk 0:01:39.9]} 27. Rxh5 {[%clk 0:00:51.1]}
27... Nxh5 {[%clk 0:01:41.8]} 28. Qxh5 {[%clk 0:00:53]} 1-0

[Event "*** Titled Tuesday 3|2 Blitz"]
[Site "Chess.com"]
[Date "2016.01.05"]
[Round "8"]
[White "FairChess_on_YouTube"]
[Black "GrigorGrigorov"]
[Result "1-0"]
[WhiteElo "2746"]
[BlackElo "2513"]
[TimeControl "180+2"]
[EndTime "18:39:04 PST"]
[Termination "FairChess_on_YouTube won by resignation"]

1. d4 {[%clk 0:03:01.9]} 1... Nf6 {[%clk 0:03:00.5]} 2. Bg5 {[%clk 0:03:02.2]}
2... Ne4 {[%clk 0:02:57.7]} 3. Bf4 {[%clk 0:03:03.2]} 3... c5 {[%clk 0:02:57.3]}
4. f3 {[%clk 0:03:01]} 4... Nf6 {[%clk 0:02:57.5]} 5. dxc5 {[%clk 0:02:54.6]}
5... b6 {[%clk 0:02:58.1]} 6. e4 {[%clk 0:02:53.5]} 6... bxc5 {[%clk 0:02:58]}
7. Bb5 {[%clk 0:02:48.4]} 7... Qb6 {[%clk 0:02:49.3]} 8. Nc3 {[%clk 0:02:47.2]}
8... a6 {[%clk 0:02:41.7]} 9. Ba4 {[%clk 0:02:47.7]} 9... Qxb2 {[%clk
0:02:37.1]} 10. Nge2 {[%clk 0:02:46.1]} 10... Qb6 {[%clk 0:02:21.8]} 11. Rb1
{[%clk 0:02:41.7]} 11... Qa7 {[%clk 0:02:19]} 12. O-O {[%clk 0:02:38.8]} 12...
Nc6 {[%clk 0:02:17.7]} 13. Bxc6 {[%clk 0:01:58.6]} 13... dxc6 {[%clk 0:02:16.9]}
14. Qd2 {[%clk 0:02:00.1]} 14... Be6 {[%clk 0:02:12.7]} 15. Rfd1 {[%clk
0:02:01]} 15... g6 {[%clk 0:02:02.8]} 16. Na4 {[%clk 0:01:59.7]} 16... Nd7
{[%clk 0:01:53.2]} 17. Qc3 {[%clk 0:01:59.2]} 17... f6 {[%clk 0:01:37.1]} 18.
Be3 {[%clk 0:01:59.8]} 18... Kf7 {[%clk 0:01:35.3]} 19. Nf4 {[%clk 0:01:56.6]}
19... Bxa2 {[%clk 0:01:13.3]} 20. Rb2 {[%clk 0:01:49.9]} 20... e5 {[%clk
0:01:13.8]} 21. Nxg6 {[%clk 0:01:26.9]} 21... hxg6 {[%clk 0:01:11.1]} 22. Rxa2
{[%clk 0:01:28]} 22... Be7 {[%clk 0:00:50.3]} 23. Qc4+ {[%clk 0:01:26]} 23...
Ke8 {[%clk 0:00:51.1]} 24. Qe6 {[%clk 0:01:20.2]} 24... Qc7 {[%clk 0:00:38.5]}
25. Nxc5 {[%clk 0:01:18]} 25... Nxc5 {[%clk 0:00:32.8]} 26. Bxc5 {[%clk
0:01:19.5]} 26... Rd8 {[%clk 0:00:22]} 27. Raa1 {[%clk 0:00:54]} 27... Kf8
{[%clk 0:00:18.1]} 28. Qxf6+ {[%clk 0:00:53.8]} 1-0